bitfinex/quotes_BTCUSD_20250709
["timestamp","ask_amount","ask_price","bid_price","bid_amount"]
[1752070262308,0.22284399,109400.0,109390.0,0.32586099]
[1752070262511,0.0217472,109400.0,109390.0,0.32586099]
[1752070262725,0.00646643,109400.0,109390.0,0.77920294]
[1752070262931,0.0247467,109400.0,109390.0,0.77920294]
[1752070263134,0.04302756,109400.0,109390.0,0.42743893]
[1752070263691,0.05216816,109400.0,109390.0,0.42743893]
[1752070263893,0.21670357,109400.0,109390.0,0.27344319]
[1752070264124,0.03088822,109400.0,109390.0,0.44362681]
[1752070264318,0.03088713,109400.0,109390.0,0.44362681]
[1752070264518,0.03188713,109400.0,109390.0,0.44362681]
[1752070264696,0.02888713,109400.0,109390.0,0.44362681]
[1752070264926,0.0197467,109400.0,109390.0,0.54358631]
[1752070265094,0.0197467,109400.0,109390.0,0.53506374]
[1752070265295,0.02888721,109400.0,109390.0,0.53506374]
[1752070265533,0.04716849,109400.0,109390.0,0.53506374]
[1752070266515,0.0197472,109400.0,109390.0,0.53506383]
[1752070266694,0.0197472,109400.0,109390.0,0.54420484]
[1752070266896,0.0288878,109400.0,109390.0,0.54420484]
[1752070267322,0.0197472,109400.0,109390.0,0.54420484]
[1752070268001,0.0288878,109400.0,109390.0,0.54420484]
[1752070268226,0.22084383,109400.0,109390.0,0.53506383]
[1752070268416,0.21170357,109400.0,109390.0,0.08046953]
[1752070268624,0.61692707,109400.0,109390.0,0.01706953]
[1752070269064,0.708364,109400.0,109390.0,0.01706953]
[1752070269284,0.72290485,109400.0,109390.0,0.01706953]
[1752070270441,0.72190485,109400.0,109390.0,0.01706953]
[1752070271370,0.81334178,109400.0,109390.0,0.01706953]
[1752070271571,0.72190485,109400.0,109390.0,0.01706953]
[1752070271993,0.72290485,109400.0,109390.0,0.01706953]
[1752070272905,0.02742855,109370.0,109360.0,0.46623065]
[1752070273120,0.02742855,109370.0,109360.0,0.65763096]
[1752070273737,0.02742855,109370.0,109360.0,0.74906789]
[1752070274221,0.01828545,109370.0,109360.0,0.80369609]
[1752070274366,0.01828545,109370.0,109360.0,0.80769609]
[1752070274781,0.01828545,109370.0,109360.0,1.1594601]
[1752070275067,0.0091426,109370.0,109360.0,1.1594601]
[1752070275281,0.34486748,109380.0,109370.0,0.27349456]
[1752070275498,0.15286185,109380.0,109370.0,0.4326862]
[1752070275953,0.02742605,109380.0,109370.0,0.47365735]
[1752070276154,0.02742605,109380.0,109370.0,0.4326862]
[1752070276378,0.02742605,109380.0,109370.0,0.47365735]
[1752070276605,0.2194171,109380.0,109370.0,0.46451467]
[1752070277016,0.00914185,109380.0,109370.0,0.47365735]
[1752070277477,0.34482282,109390.0,109380.0,0.19199105]
[1752070277712,0.34482282,109390.0,109380.0,0.24941355]
[1752070277950,0.33568147,109390.0,109380.0,0.18284878]
[1752070279087,0.33568147,109390.0,109380.0,0.19199113]
[1752070279319,0.33568147,109390.0,109380.0,0.18199113]
[1752070279749,0.33568147,109390.0,109380.0,0.17284878]
[1752070279992,0.33568147,109390.0,109370.0,0.35540852]
[1752070280208,0.20113298,109380.0,109370.0,0.50085708]
[1752070280415,0.20113298,109380.0,109370.0,0.468957]
[1752070280587,0.20113298,109380.0,109370.0,0.4468001]
[1752070280799,0.20113298,109380.0,109370.0,0.437657]
[1752070281153,0.20113298,109380.0,109370.0,0.4468001]
[1752070281345,0.20113298,109380.0,109370.0,0.4488001]
[1752070281556,0.20113298,109380.0,109370.0,0.439657]
[1752070282218,0.0274263,109380.0,109370.0,0.45794295]
[1752070282635,0.03656873,109380.0,109370.0,0.45794295]
[1752070283052,0.21941751,109380.0,109370.0,0.4488001]
[1752070283259,0.21941751,109380.0,109370.0,0.41697197]
[1752070283461,0.21941751,109380.0,109370.0,0.42611491]
[1752070283680,0.21941751,109380.0,109370.0,0.44997197]
[1752070284283,0.21941751,109380.0,109370.0,0.45911491]
[1752070284487,0.01828395,109380.0,109370.0,0.46825776]
[1752070284703,0.02742622,109380.0,109370.0,0.46111457]
[1752070284904,0.210275,109380.0,109370.0,0.44282878]
[1752070285100,0.03656857,109380.0,109370.0,0.40068576]
[1752070285343,0.00914185,109380.0,109370.0,0.41897138]
[1752070285573,0.01828395,109380.0,109370.0,0.48307138]
[1752070285772,0.01828387,109380.0,109370.0,0.48307138]
[1752070286045,0.15278168,109380.0,109370.0,0.83483539]
[1752070286244,0.16192353,109380.0,109370.0,0.91677769]
[1752070286457,0.15278168,109380.0,109370.0,0.91677769]
[1752070286846,0.16192353,109380.0,109370.0,0.91677769]
[1752070287046,0.15278168,109380.0,109370.0,0.91677769]
[1752070287216,0.16192345,109380.0,109370.0,0.91677769]
[1752070287425,0.18020748,109380.0,109370.0,0.91677769]
[1752070288085,0.02742538,109380.0,109370.0,0.91677769]
[1752070288296,0.01828345,109380.0,109370.0,0.91677769]
[1752070288492,0.34478282,109390.0,109380.0,0.19199113]
[1752070288730,0.34478282,109390.0,109380.0,0.23308517]
[1752070289151,0.33564147,109390.0,109380.0,0.04109404]
[1752070289353,0.71880548,109390.0,109380.0,0.04109404]
[1752070290208,0.25399105,109380.0,109370.0,0.09572224]
[1752070290389,0.60575506,109380.0,109370.0,0.19568562]
[1752070290830,1.048956,109380.0,109370.0,0.19568562]
[1752070291081,1.048956,109380.0,109370.0,0.14105742]
[1752070291284,1.048956,109380.0,109370.0,0.04109404]
[1752070291285,1.14039293,109380.0,109370.0,0.04109404]
[1752070291699,1.14039293,109380.0,109370.0,0.04309404]
[1752070292119,0.78862892,109380.0,109370.0,0.04309404]
[1752070292328,1.14039293,109380.0,109370.0,0.04309404]
[1752070292534,0.69719199,109380.0,109370.0,0.04309404]
[1752070293426,0.60575506,109380.0,109370.0,0.04309404]
[1752070293666,0.54375506,109380.0,109370.0,0.04109404]
[1752070293872,0.54375506,109380.0,109360.0,0.35909142]
[1752070293873,0.19193481,109370.0,109360.0,0.35909142]
[1752070294024,0.19193481,109370.0,109360.0,0.45052835]
[1752070294025,0.33553481,109370.0,109360.0,0.45052835]
[1752070294430,0.33553481,109370.0,109360.0,0.44138449]
[1752070295107,0.15266931,109370.0,109360.0,0.44138449]
[1752070295329,0.16188529,109370.0,109360.0,0.82057923]
[1752070295519,0.17102831,109370.0,109360.0,0.77948519]
[1752070295760,0.18017141,109370.0,109360.0,0.77948519]
[1752070295969,0.36303758,109370.0,109360.0,0.40943422]
[1752070296187,0.36303758,109370.0,109360.0,0.41857791]
[1752070296393,0.18017208,109370.0,109360.0,0.43686503]
[1752070296817,0.17102889,109370.0,109360.0,0.43686503]
[1752070297409,0.35389439,109370.0,109360.0,0.43686503]
[1752070297615,0.36303766,109370.0,109360.0,0.43686503]
[1752070297852,0.18017216,109370.0,109360.0,0.43686503]
[1752070298241,0.18017216,109370.0,109360.0,0.51880733]
[1752070298653,0.17102889,109370.0,109360.0,0.51880733]
[1752070299027,0.16188537,109370.0,109360.0,0.61877071]
[1752070299226,0.17102797,109370.0,109360.0,0.61877071]
[1752070299613,0.18017099,109370.0,109360.0,0.61877071]
[1752070299814,0.03657099,109370.0,109360.0,0.61877071]
[1752070300112,0.17098797,109370.0,109360.0,0.61877071]
[1752070300314,0.18013091,109370.0,109360.0,0.61877071]
[1752070300526,0.36299758,109370.0,109360.0,0.60048359]
[1752070300885,0.36299758,109370.0,109360.0,0.61162719]
[1752070301328,0.18013208,109370.0,109360.0,0.62277071]
[1752070301880,0.22858085,109370.0,109360.0,0.62277071]
[1752070302493,0.03657208,109370.0,109360.0,0.62277071]
[1752070303125,0.0091426,109370.0,109360.0,1.06597165]
[1752070303327,0.18284878,109380.0,109370.0,0.27429456]
[1752070303328,0.35383566,109380.0,109370.0,0.27429456]
[1752070303536,0.35383566,109380.0,109370.0,0.42033941]
[1752070303962,0.35383566,109380.0,109370.0,0.56389941]
[1752070304390,0.35383566,109380.0,109370.0,0.55475664]
[1752070305493,0.35383566,109380.0,109370.0,0.56389958]
[1752070306252,0.34469356,109380.0,109370.0,0.55475664]
[1752070307813,0.33555121,109380.0,109370.0,0.54561362]
[1752070308160,0.33555121,109380.0,109370.0,0.55475681]
[1752070309117,0.20113282,109380.0,109370.0,0.94733721]
[1752070309318,0.21941719,109380.0,109370.0,0.86539491]
[1752070309482,0.21941785,109380.0,109370.0,0.5136309]
[1752070309689,0.21027583,109380.0,109370.0,0.51363107]
[1752070310298,0.21027583,109380.0,109370.0,0.60471631]
[1752070312064,0.20113356,109380.0,109370.0,0.59557337]
[1752070312223,0.19199121,109380.0,109370.0,0.58643035]
[1752070312431,0.19199121,109380.0,109370.0,0.59557337]
[1752070313575,0.19199121,109380.0,109370.0,0.39442175]
[1752070314987,0.19199121,109380.0,109370.0,0.33034175]
[1752070315186,0.19199121,109380.0,109370.0,0.51320725]
[1752070315391,0.19199121,109380.0,109370.0,0.53149371]
[1752070315597,0.19199121,109380.0,109370.0,0.56409371]
[1752070316037,0.19199121,109380.0,109370.0,0.59549371]
[1752070316215,0.20113339,109380.0,109370.0,0.61377966]
[1752070316359,0.21027532,109380.0,109370.0,0.62292243]
[1752070317815,0.01828361,109380.0,109370.0,0.62292184]
[1752070318751,0.01828353,109380.0,109370.0,0.62292184]
[1752070319021,0.02742546,109380.0,109370.0,0.62292184]
[1752070319459,0.03656756,109380.0,109370.0,0.62292184]
[1752070319734,0.04570983,109380.0,109370.0,0.60463639]
[1752070320166,0.03656756,109380.0,109370.0,0.61377916]
[1752070320369,0.02742546,109380.0,109370.0,0.62292184]
[1752070320902,0.03656748,109380.0,109370.0,0.62292184]
[1752070322178,0.02742546,109380.0,109370.0,0.62292184]
[1752070322378,0.02742546,109380.0,109370.0,0.61377916]
[1752070322551,0.03656764,109380.0,109370.0,0.61377916]
[1752070323016,0.04570999,109380.0,109370.0,0.59549354]
[1752070323247,0.24287574,109380.0,109370.0,0.52227052]
[1752070323452,0.21027574,109380.0,109370.0,0.51312725]
[1752070323885,0.21027574,109380.0,109370.0,0.52227052]
[1752070324096,0.21027574,109380.0,109370.0,0.51312725]
[1752070324294,0.20113356,109380.0,109370.0,0.51312725]
[1752070324498,0.55289757,109380.0,109370.0,0.52227052]
[1752070324713,0.55289757,109380.0,109370.0,0.51312725]
[1752070325115,0.55289757,109380.0,109370.0,0.31964167]
[1752070325297,0.61699757,109380.0,109370.0,0.46304167]
[1752070325697,0.61699757,109380.0,109370.0,0.47218486]
[1752070325932,0.02742622,109380.0,109370.0,0.55327065]
[1752070326271,0.02742622,109380.0,109370.0,0.5441278]
[1752070326620,0.21941743,109380.0,109370.0,0.60366481]
[1752070326831,0.21941743,109380.0,109370.0,0.56362179]
[1752070327400,0.21941743,109380.0,109370.0,0.57276489]
[1752070327780,0.21941743,109380.0,109370.0,0.58190791]
[1752070327979,0.21941743,109380.0,109370.0,0.57276489]
[1752070328188,0.02742622,109380.0,109370.0,0.58190774]
[1752070328405,0.03656865,109380.0,109370.0,0.58190783]
[1752070328660,0.02742622,109380.0,109370.0,0.58190783]
[1752070328882,0.21941735,109380.0,109370.0,0.57276489]
[1752070329086,0.21941735,109380.0,109370.0,0.42936489]
[1752070329425,0.2102755,109380.0,109370.0,0.31964167]
[1752070329635,0.57635514,109380.0,109370.0,0.05483387]
[1752070329844,0.60875514,109380.0,109370.0,0.05483387]
[1752070330046,0.60875514,109380.0,109370.0,0.23769937]
[1752070330534,0.59961279,109380.0,109370.0,0.05483387]
[1752070332648,0.24784878,109380.0,109370.0,0.23769937]
[1752070332858,0.00914101,109390.0,109380.0,0.27307474]
[1752070333022,0.00914101,109390.0,109380.0,0.99641407]
[1752070333228,0.00914101,109390.0,109380.0,0.94153815]
[1752070333423,0.01828219,109390.0,109380.0,0.94153815]
[1752070333629,0.01828219,109390.0,109380.0,1.05012124]
[1752070333907,0.01828219,109390.0,109380.0,1.05888278]
[1752070334113,0.01828219,109390.0,109380.0,1.05012124]
[1752070334270,0.21025568,109390.0,109380.0,0.59777862]
[1752070334474,0.21025568,109390.0,109380.0,0.5977787]
[1752070334982,0.20111467,109390.0,109380.0,0.5977787]
[1752070335176,0.18283206,109390.0,109380.0,0.57949417]
[1752070335373,0.18283206,109390.0,109380.0,0.49874077]
[1752070335575,0.18283206,109390.0,109380.0,0.36456312]
[1752070335779,0.18283206,109390.0,109380.0,0.34627834]
[1752070335945,0.18283206,109390.0,109380.0,0.35542077]
[1752070336152,0.18283206,109390.0,109380.0,0.36456312]
[1752070338050,0.18283206,109390.0,109380.0,0.35542077]
[1752070338777,0.18283206,109390.0,109380.0,0.34627834]
[1752070339634,0.18283206,109390.0,109380.0,0.36456312]
[1752070339842,0.18283206,109390.0,109380.0,0.35542077]
[1752070340735,0.19197366,109390.0,109380.0,0.35542077]
[1752070340981,0.19197366,109390.0,109380.0,0.34627834]
[1752070341540,0.19197366,109390.0,109380.0,0.34626853]
[1752070342519,0.19197366,109390.0,109380.0,0.35541096]
[1752070343512,0.19197366,109390.0,109380.0,0.34626815]
[1752070343905,0.19197366,109390.0,109380.0,0.35541058]
[1752070344108,0.19197366,109390.0,109380.0,0.34626815]
[1752070344318,0.19197366,109390.0,109380.0,0.35541058]
[1752070344517,0.19197366,109390.0,109380.0,0.35541051]
[1752070344738,0.19197366,109390.0,109380.0,0.34626808]
[1752070345148,0.19197366,109390.0,109380.0,0.39653435]
[1752070345621,0.19197366,109390.0,109380.0,0.38739192]
[1752070346269,0.19197366,109390.0,109380.0,0.38739199]
[1752070347192,0.19197366,109390.0,109380.0,0.25483115]
[1752070347440,0.19197366,109390.0,109380.0,0.25483175]
[1752070348736,0.19197366,109390.0,109380.0,0.26397418]
[1752070348935,0.19197366,109390.0,109380.0,0.25483175]
[1752070349077,0.19197366,109390.0,109380.0,0.26397418]
[1752070349279,0.19197366,109390.0,109380.0,0.35541111]
[1752070349684,0.19197366,109390.0,109380.0,0.34626868]
[1752070349898,0.19197366,109390.0,109380.0,0.35541111]
[1752070350300,0.19197366,109390.0,109380.0,0.34626868]
[1752070350728,0.19197366,109390.0,109380.0,0.35541111]
[1752070351127,0.19197366,109390.0,109380.0,0.3462697]
[1752070351600,0.19197366,109390.0,109380.0,0.35541213]
[1752070351802,0.19197366,109390.0,109380.0,0.36455448]
[1752070352194,0.19197366,109390.0,109380.0,0.35541213]
[1752070352598,0.19197366,109390.0,109380.0,0.36455448]
[1752070352795,0.20111501,109390.0,109380.0,0.36455448]
[1752070352999,0.20111501,109390.0,109380.0,0.35541213]
[1752070353270,0.20111501,109390.0,109380.0,0.36455448]
[1752070353716,0.20111501,109390.0,109380.0,0.2639752]
[1752070354173,0.20111501,109390.0,109380.0,0.27311747]
[1752070354516,0.20111501,109390.0,109380.0,0.27311755]
[1752070355364,0.00960703,109400.0,109390.0,0.19197366]
[1752070355584,0.00046643,109400.0,109390.0,0.89079384]
[1752070355815,0.00046643,109400.0,109390.0,1.0736677]
[1752070356038,0.00046643,109400.0,109390.0,1.1144816]
[1752070356258,0.00046643,109400.0,109390.0,1.57272799]
[1752070356699,0.00046643,109400.0,109390.0,1.60018899]
[1752070357351,0.00046643,109400.0,109390.0,1.60218899]
[1752070357559,0.00046643,109400.0,109390.0,1.1792955]
[1752070357785,0.00046643,109400.0,109390.0,1.55851845]
[1752070358222,0.00046643,109400.0,109390.0,1.53101745]
[1752070359286,0.0365578,109410.0,109400.0,0.24183656]
[1752070359518,0.0365578,109410.0,109400.0,0.40030484]
[1752070359732,0.02741812,109410.0,109400.0,0.40030484]
[1752070359951,0.01827861,109410.0,109400.0,0.43260484]
[1752070360172,0.02741602,109420.0,109410.0,0.21021776]
[1752070360415,0.01841694,109420.0,109410.0,0.4661953]
[1752070360624,0.02755545,109420.0,109410.0,0.62907157]
[1752070361078,0.02755545,109420.0,109410.0,0.62904907]
[1752070361317,0.00013985,109420.0,109410.0,0.62904907]
[1752070361523,0.01127836,109420.0,109410.0,0.62904907]
[1752070361770,0.02041703,109420.0,109410.0,0.62904907]
[1752070362190,0.00213985,109420.0,109410.0,0.96369806]
[1752070362391,0.01127827,109420.0,109410.0,0.98080724]
[1752070362608,0.01227827,109420.0,109410.0,0.98080724]
[1752070363040,0.00313985,109420.0,109410.0,0.98080724]
[1752070363458,0.01227827,109420.0,109410.0,0.98080724]
[1752070363709,0.00313985,109420.0,109410.0,0.98080724]
[1752070363963,0.01227827,109420.0,109410.0,0.98080724]
[1752070364185,0.02141694,109420.0,109410.0,0.98080724]
[1752070364377,0.02141686,109420.0,109410.0,0.98080724]
[1752070364583,0.01227827,109420.0,109410.0,0.98080724]
[1752070364788,0.02141686,109420.0,109410.0,0.98080724]
[1752070364994,0.03055562,109420.0,109410.0,0.62904323]
[1752070365417,0.02141686,109420.0,109410.0,0.62904323]
[1752070366244,0.01227827,109420.0,109410.0,0.92608723]
[1752070366455,0.02141678,109420.0,109410.0,0.92608723]
[1752070367277,0.01227827,109420.0,109410.0,0.92608723]
[1752070367677,0.02141686,109420.0,109410.0,0.92608723]
[1752070367879,0.0305557,109420.0,109410.0,0.92608723]
[1752070368086,0.0305557,109420.0,109410.0,0.57429616]
[1752070368464,0.0305557,109420.0,109410.0,0.5834355]
[1752070368858,0.02141686,109420.0,109410.0,0.5834355]
[1752070369070,0.0305557,109420.0,109410.0,0.5834355]
[1752070369305,0.0305557,109420.0,109410.0,0.57429616]
[1752070369757,0.03969471,109420.0,109410.0,0.57429616]
[1752070369879,0.21333764,109420.0,109410.0,0.57429616]
[1752070370086,0.22247673,109420.0,109410.0,0.53385673]
[1752070370357,0.22247673,109420.0,109410.0,0.50285673]
[1752070371829,0.61966373,109420.0,109410.0,0.14955897]
[1752070372002,0.26789972,109420.0,109410.0,0.01708203]
[1752070372614,0.20419972,109420.0,109410.0,0.01708203]
[1752070373224,0.20419972,109420.0,109410.0,0.05812204]
[1752070373425,0.20419972,109420.0,109410.0,0.25006052]
[1752070373676,0.20419972,109420.0,109410.0,0.26833971]
[1752070373843,0.17351621,109420.0,109410.0,0.33847905]
[1752070374061,0.18265522,109420.0,109410.0,0.42991598]
[1752070374472,0.37457625,109420.0,109410.0,0.42077664]
[1752070374822,0.03969522,109420.0,109410.0,0.43905541]
[1752070375027,0.02141678,109420.0,109410.0,0.79081942]
[1752070375170,0.00313985,109420.0,109410.0,0.79081942]
[1752070375379,0.03055546,109420.0,109410.0,0.93697636]
[1752070375593,0.03055529,109420.0,109410.0,0.93697636]
[1752070376119,0.03769413,109420.0,109410.0,0.93697636]
[1752070376325,0.04683306,109420.0,109410.0,0.93697636]
[1752070376471,0.04583306,109420.0,109410.0,0.93697636]
[1752070376922,0.04583306,109420.0,109410.0,0.93697314]
[1752070377120,0.03669413,109420.0,109410.0,0.93697314]
[1752070377527,0.02755529,109420.0,109410.0,0.93697314]
[1752070377719,0.02755529,109420.0,109410.0,0.58520913]
[1752070377965,0.02755529,109420.0,109410.0,0.93697314]
[1752070378270,0.00013985,109420.0,109410.0,0.93697314]
[1752070378710,0.00013985,109420.0,109410.0,0.97803813]
[1752070379004,0.00013985,109420.0,109410.0,1.32980214]
[1752070379220,0.00013985,109420.0,109410.0,1.37504551]
[1752070379430,0.00013985,109420.0,109410.0,1.71504551]
[1752070379864,0.00013985,109420.0,109410.0,1.74250251]
[1752070380298,0.00013985,109420.0,109410.0,1.74450251]
[1752070380508,0.00013985,109420.0,109410.0,1.74650251]
[1752070380709,0.00013985,109420.0,109410.0,1.77379875]
[1752070380934,0.00013985,109420.0,109410.0,2.07379875]
[1752070381348,0.0002,109450.0,109440.0,0.2741598]
[1752070381528,0.00028528,109450.0,109440.0,0.96583256]
[1752070381766,0.00028528,109450.0,109440.0,1.02049186]
[1752070382221,0.00028528,109450.0,109440.0,1.69859105]
[1752070382443,0.00028528,109450.0,109440.0,1.34682704]
[1752070382662,0.01242112,109450.0,109440.0,1.50143053]
[1752070382886,0.01242112,109450.0,109440.0,0.98951259]
[1752070383118,0.00328528,109450.0,109440.0,1.50239053]
[1752070383333,0.00028528,109450.0,109440.0,1.44675042]
[1752070383763,0.00028528,109450.0,109440.0,1.44875042]
[1752070383972,0.00028528,109450.0,109440.0,1.09898641]
[1752070384211,0.00028528,109450.0,109440.0,1.45075042]
[1752070385687,0.01855721,109450.0,109440.0,1.45075042]
[1752070385869,0.22869823,109450.0,109440.0,0.74067239]
[1752070386048,0.0368298,109450.0,109440.0,0.75894648]
[1752070386241,0.21956239,109450.0,109440.0,0.74044388]
[1752070386445,0.01855754,109450.0,109440.0,0.75871781]
[1752070386641,0.01855721,109450.0,109440.0,0.75871781]
[1752070386889,0.02769355,109450.0,109440.0,0.79121781]
[1752070387583,0.02769355,109450.0,109440.0,0.67672901]
[1752070387720,0.02769355,109450.0,109440.0,0.66759201]
[1752070387932,0.02769346,109450.0,109440.0,0.70932885]
[1752070388356,0.03682988,109450.0,109440.0,0.70932885]
[1752070388557,0.03682988,109450.0,109440.0,0.70019201]
[1752070388862,0.02769346,109450.0,109440.0,0.71846593]
[1752070389034,0.38859389,109450.0,109440.0,0.71846552]
[1752070389233,0.58046232,109450.0,109440.0,0.22319504]
[1752070389479,0.61345414,109450.0,109440.0,0.35938975]
[1752070389681,0.61345414,109450.0,109440.0,0.17567651]
[1752070389852,0.61345414,109450.0,109440.0,0.31843651]
[1752070390462,0.61345414,109450.0,109440.0,0.3013577]
[1752070390682,0.61345414,109450.0,109440.0,0.11665198]
[1752070390900,0.61345414,109450.0,109440.0,0.06201766]
[1752070391118,0.61345414,109450.0,109440.0,0.0210676]
[1752070391330,0.61345414,109450.0,109440.0,0.3210676]
[1752070391740,0.61345414,109450.0,109440.0,0.3190676]
[1752070392138,0.71943192,109450.0,109440.0,0.3170676]
[1752070392400,1.07119593,109450.0,109440.0,0.3170676]
[1752070392605,0.62799499,109450.0,109440.0,0.3170676]
[1752070393020,0.62899499,109450.0,109440.0,0.3170676]
[1752070393429,0.62899499,109450.0,109440.0,0.3]
[1752070394042,0.980759,109450.0,109440.0,0.3]
[1752070394248,1.16363286,109450.0,109440.0,0.3]
[1752070396780,0.80010484,109450.0,109440.0,0.3]
[1752070396925,1.50363286,109450.0,109440.0,0.3]
[1752070400130,1.50263286,109450.0,109440.0,0.3]
[1752070400413,1.50463286,109450.0,109440.0,0.3]
[1752070400746,1.50663286,109450.0,109440.0,0.3]
[1752070406009,1.57663286,109450.0,109440.0,0.3]
[1752070410486,1.71927286,109450.0,109440.0,0.3]
[1752070413100,1.71923286,109450.0,109440.0,0.3]
[1752070419594,0.20646172,109420.0,109410.0,0.04096235]
[1752070419892,1.22237937,109420.0,109410.0,0.04096235]
[1752070420296,0.20647925,109410.0,109400.0,0.10606235]
[1752070420532,1.05256727,109410.0,109400.0,0.16069667]
[1752070420703,1.05256727,109410.0,109400.0,0.10606235]
[1752070421119,1.05256727,109410.0,109400.0,0.0651]
[1752070421550,1.05256727,109410.0,109400.0,0.06523985]
[1752070421723,1.05256727,109410.0,109400.0,0.06623985]
[1752070424359,1.13996285,109410.0,109400.0,0.07265838]
[1752070424568,0.34903925,109410.0,109400.0,0.07265838]
[1752070424722,1.05256727,109410.0,109400.0,0.07265838]
[1752070425855,1.06127299,109410.0,109400.0,0.07265838]
[1752070428061,1.06127299,109410.0,109400.0,0.00755838]
[1752070428062,1.55630992,109410.0,109400.0,0.00755838]
[1752070428288,1.64774685,109410.0,109400.0,0.00755838]
[1752070433327,0.8527819,109410.0,109400.0,0.00755838]
[1752070433558,1.49270992,109410.0,109400.0,0.00755838]
[1752070435588,1.55380992,109410.0,109400.0,0.00755838]
[1752070436152,1.52340992,109410.0,109400.0,0.00755838]
[1752070436704,1.49270992,109410.0,109400.0,0.00755838]
[1752070436906,1.58414685,109410.0,109400.0,0.00755838]
[1752070440293,1.64554685,109410.0,109400.0,0.00754862]
[1752070442294,1.64554685,109410.0,109400.0,0.00754952]
[1752070442535,1.99731086,109410.0,109400.0,0.00754952]
[1752070442734,0.20113307,109380.0,109370.0,0.23142615]
[1752070442944,1.09999997,109380.0,109370.0,0.10412878]
[1752070443152,1.1914369,109380.0,109370.0,0.04142878]
[1752070443455,1.1914369,109380.0,109370.0,0.00046643]
[1752070443768,1.6045369,109380.0,109370.0,0.00046643]
[1752070446162,1.6065369,109380.0,109370.0,0.00046643]
[1752070446764,1.6075369,109380.0,109370.0,0.00046643]
[1752070449363,1.95930091,109380.0,109370.0,1e-08]
[1752070449681,1.6075369,109380.0,109370.0,1e-08]
[1752070450226,1.6055369,109380.0,109370.0,1e-08]
[1752070450423,1.6055369,109380.0,109370.0,0.30000001]
[1752070450623,1.6115369,109380.0,109370.0,0.30100001]
[1752070451119,1.6105369,109380.0,109370.0,1e-08]
[1752070451846,1.63800429,109380.0,109370.0,1e-08]
[1752070452448,1.64500429,109380.0,109370.0,0.00100001]
[1752070452882,1.64500429,109380.0,109370.0,1e-08]
[1752070456915,1.50260429,109380.0,109370.0,1e-08]
[1752070457226,1.53985605,109380.0,109370.0,0.06400001]
[1752070458059,1.00733401,109380.0,109370.0,0.06400001]
[1752070458230,0.66733401,109380.0,109370.0,0.06400001]
[1752070458435,0.80969401,109380.0,109370.0,0.06400001]
[1752070458650,0.82423486,109380.0,109370.0,0.06400001]
[1752070459239,0.81823486,109380.0,109370.0,0.06400001]
[1752070459639,0.81123486,109380.0,109370.0,0.064]
[1752070459835,0.81423486,109380.0,109370.0,0.065]
[1752070460104,0.81823486,109380.0,109370.0,0.065]
[1752070461896,0.56989708,109380.0,109370.0,0.065]
[1752070462100,0.71221708,109380.0,109370.0,0.065]
[1752070462646,0.2272755,109380.0,109370.0,0.27758029]
[1752070462847,0.3695955,109380.0,109370.0,0.27529448]
[1752070463062,0.3695955,109380.0,109370.0,0.28443725]
[1752070463234,0.18674672,109380.0,109370.0,0.28443725]
[1752070463569,0.18674664,109380.0,109370.0,0.33454228]
[1752070463769,0.37873785,109380.0,109370.0,0.41683653]
[1752070464129,0.18674664,109380.0,109370.0,0.41683653]
[1752070464480,0.03528379,109380.0,109370.0,0.42597921]
[1752070464684,0.19588824,109380.0,109370.0,0.42597921]
[1752070464958,0.18674572,109380.0,109370.0,0.42597921]
[1752070465401,0.38787911,109380.0,109370.0,0.40769376]
[1752070465680,0.37873734,109380.0,109370.0,0.40769376]
[1752070465904,0.19588856,109380.0,109370.0,0.41683653]
[1752070466105,0.18674613,109380.0,109370.0,0.42597921]
[1752070466377,0.03528395,109380.0,109370.0,0.42597921]
[1752070466581,0.02614185,109380.0,109370.0,0.42597921]
[1752070466786,0.03528387,109380.0,109370.0,0.42597921]
[1752070466994,0.02614185,109380.0,109370.0,0.42597921]
[1752070467146,0.017,109380.0,109370.0,0.92381447]
[1752070467535,0.017,109380.0,109370.0,0.86918015]
[1752070468245,0.013,109380.0,109370.0,1.02513212]
[1752070468448,0.013,109380.0,109370.0,1.03421333]
[1752070469147,0.013,109380.0,109370.0,1.45620229]
[1752070469299,0.013,109380.0,109370.0,1.40156797]
[1752070471216,0.013,109380.0,109370.0,1.50153135]
[1752070471408,0.01,109380.0,109370.0,1.50053135]
[1752070471613,0.011,109380.0,109370.0,1.50053135]
[1752070472108,0.01,109380.0,109370.0,1.50253135]
[1752070472595,0.01,109380.0,109370.0,1.50353135]
[1752070472998,0.01,109380.0,109370.0,1.53099835]
[1752070473858,0.01914177,109380.0,109370.0,1.37963714]
[1752070474113,0.22941727,109380.0,109370.0,1.08780976]
[1752070474340,0.22941727,109380.0,109370.0,1.13792076]
[1752070474548,0.2202755,109380.0,109370.0,1.12877774]
[1752070474749,0.2202755,109380.0,109370.0,1.14706353]
[1752070474978,0.2202755,109380.0,109370.0,1.15581867]
[1752070475184,0.02828379,109380.0,109370.0,1.16496135]
[1752070475627,0.03742597,109380.0,109370.0,1.51672536]
[1752070475835,0.02828379,109380.0,109370.0,1.47575738]
[1752070476034,0.03742597,109380.0,109370.0,1.47575738]
[1752070476241,0.04656832,109380.0,109370.0,1.46700224]
[1752070476450,0.03742597,109380.0,109370.0,1.46700224]
[1752070477049,0.02828379,109380.0,109370.0,1.46700224]
[1752070477284,0.01,109380.0,109370.0,1.46700224]
[1752070477423,0.01,109380.0,109370.0,1.5489912]
[1752070478268,0.01914185,109380.0,109370.0,1.5489912]
[1752070478479,0.01914177,109380.0,109370.0,1.55811762]
[1752070478611,0.01,109380.0,109370.0,1.55811762]
[1752070478817,0.01914177,109380.0,109370.0,1.55811762]
[1752070479426,0.01,109380.0,109370.0,1.55811762]
[1752070480540,0.01914177,109380.0,109370.0,1.55811762]
[1752070480938,0.01,109380.0,109370.0,1.55811762]
[1752070483698,0.01,109380.0,109370.0,1.50349689]
[1752070483903,0.01,109380.0,109370.0,1.55811635]
[1752070484633,0.01,109380.0,109370.0,1.50349689]
[1752070486295,0.01914177,109380.0,109370.0,1.50349689]
[1752070486496,0.02828379,109380.0,109370.0,1.14260663]
[1752070486664,0.03742597,109380.0,109370.0,1.00040663]
[1752070486885,0.03742597,109380.0,109370.0,1.14252663]
[1752070487090,0.0282837,109380.0,109370.0,1.14252663]
[1752070487312,0.0282837,109380.0,109370.0,1.00040663]
[1752070487522,0.0282837,109380.0,109370.0,1.14252663]
[1752070487739,0.03742588,109380.0,109370.0,1.15126238]
[1752070488054,0.0282837,109380.0,109370.0,1.15122238]
[1752070488479,0.0282837,109380.0,109370.0,1.50298639]
[1752070489821,0.01914177,109380.0,109370.0,1.50298639]
[1752070490237,0.02828362,109380.0,109370.0,1.50298639]
[1752070490442,0.02828362,109380.0,109370.0,1.42099743]
[1752070491244,0.01914177,109380.0,109370.0,1.42099743]
[1752070491454,0.01914168,109380.0,109370.0,1.53031604]
[1752070491651,0.02828353,109380.0,109370.0,1.53031604]
[1752070491852,0.01,109380.0,109370.0,1.53031604]